[Event "Tech Mahindra GCL Final 2024"]
[Site "London"]
[Date "2024.10.12"]
[Round "1"]
[White "Kosteniuk, Alexandra"]
[Black "Tan, Zhongyi"]
[Result "1-0"]
[ECO "C43"]
[WhiteElo "2480"]
[BlackElo "2551"]
[Annotator "TA"]
[PlyCount "119"]
[EventDate "2024.09.29"]
[EventType "team-tourn"]
[EventCountry "ENG"]
[SourceTitle "playchess.com"]
[Source "ChessBase"]
[SourceQuality "1"]
[WhiteTeam "Triveni Continental Kings"]
[BlackTeam "Alaskan Knights"]
[TimeControl "1200"]

{[%evp 47,119,0,113,114,101,25,130,24,24,24,24,0,24,24,24,0,0,0,24,24,31,42,67,106,113,110,154,141,184,169,191,175,411,421,421,418,404,320,556,558,520,498,390,341,375,345,948,866,1663,380,347,293,1056,945,978,977,2235,0,402,0,2182,118,85,91,85,97,111,89,29985,29985,29988,29989,29991,29992]} 1. e4 {[%emt 0:00:01]} e5 {[%emt 0:00:02]} 2. Nf3 {[%emt 0:00:02]} Nf6 {[%emt 0:00:02]} 3. d4 {[%emt 0:00:03]} Nxe4 {[%emt 0:00:05]} 4. Bd3 {[%emt 0:00:24]} d5 {[%emt 0:00:22]} 5. Nxe5 {[%emt 0:00:00]} Nd7 {[%emt 0:00:09]} 6. O-O {[%emt 0:00:00]} Nxe5 {[%emt 0:00:03]} 7. dxe5 {[%emt 0:00:00]} Nc5 {[%emt 0:00:04]} 8. Be3 {[%emt 0:00:00]} Be7 {[%emt 0:00:32]} 9. f4 {[%emt 0:00:00]} Nxd3 {[%emt 0:00:18]} 10. Qxd3 {[%emt 0:00:00]} g6 {[%emt 0:00:10]} 11. Nc3 {[%emt 0:00:00]} c6 {[%emt 0:00:09]} 12. Ne2 {[%emt 0:00:00]} Bf5 {[%emt 0:00:45]} 13. Qb3 {[%emt 0:00:01]} Qd7 {[%emt 0:00:42]} 14. Ng3 {[%emt 0:00:06]} Be6 {[%emt 0:00:27]} 15. Qd3 {[%emt 0:00:16]} c5 {[%emt 0:01:46]} 16. c3 {[%emt 0:01:03]} O-O-O {[%emt 0:00:58]} 17. f5 {[%emt 0:03:12]} gxf5 {[%emt 0:00:03]} 18. Nxf5 {[%emt 0:00:05]} Bxf5 {[%emt 0:02:06]} 19. Qxf5 {[%emt 0:00:15]} Qxf5 {[%emt 0:00:32]} 20. Rxf5 {[%emt 0:00:02]} Kd7 {[%emt 0:00:25]} 21. Rxf7 {[%emt 0:00:25]} Ke6 {[%emt 0:00:02]} 22. Rxe7+ {[%emt 0:01:33]} Kxe7 {[%emt 0:00:01]} 23. Bxc5+ {[%emt 0:00:01]} Ke6 {[%emt 0:00:06]} 24. Bxa7 {[%emt 0:00:23]} Rhf8 {[%emt 0:00:04]} (24... Ra8 $11 {keeps the balance.} 25. Bd4 b5) 25. Bd4 $16 {[%emt 0:00:05]} Rf4 {[%emt 0:00:11]} 26. g3 {[%emt 0:00:17]} ({White should play} 26. a4 $16) 26... Rf3 {[%emt 0:00:19]} (26... Rg8 $11) 27. Rd1 {[%emt 0:00:19]} (27. a4 $1 $16) 27... b5 $11 {[%emt 0:00:32]} 28. Kg2 {[%emt 0:00:13]} Rf7 {[%emt 0:00:09]} 29. a3 {[%emt 0:01:06]} Rg8 {[%emt 0:00:13]} 30. Ra1 {[%emt 0:00:12]} Ra8 {[%emt 0:01:33]} 31. Re1 {[%emt 0:00:33]} Rg8 {[%emt 0:00:02]} 32. Ra1 {[%emt 0:01:21]} Ra8 {[%emt 0:00:02]} 33. b3 {[%emt 0:00:29]} Rff8 {[%emt 0:01:10]} 34. a4 {[%emt 0:00:38]} bxa4 {[%emt 0:00:01]} 35. bxa4 {[%emt 0:00:01]} Ra6 {[%emt 0:00:02]} 36. a5 {[%emt 0:00:43]} Rfa8 {[%emt 0:00:04]} 37. Rf1 {[%emt 0:00:02]} Rxa5 {[%emt 0:00:16]} 38. Rf6+ {[%emt 0:00:01]} Ke7 {[%emt 0:00:05] [#]} 39. Rh6 $1 {[%emt 0:00:01]} Rh8 $2 {[%emt 0:00:37]} (39... Ra2+ {might work better.} 40. Kh3 Rg8 41. Rxh7+ Ke6 42. Rh6+ Ke7) 40. g4 $18 {[%emt 0:00:15]} Ra2+ {[%emt 0:00:25]} 41. Kg3 {[%emt 0:00:04]} Re2 {[%emt 0:00:39]} 42. h4 {[%emt 0:01:15]} Re4 $2 {[%emt 0:00:20]} (42... Ke8 {was worth a try.} 43. e6 Rg8 44. Rxh7 Re4) 43. g5 $18 {[%emt 0:00:12]} Ke8 {[%emt 0:00:38]} 44. e6 {[%emt 0:00:42]} Rf8 {[%emt 0:00:02]} 45. Rxh7 {[%emt 0:00:07]} Rxe6 {[%emt 0:00:10]} 46. Ra7 {[%emt 0:00:13]} Rf1 $2 {[%emt 0:00:12]} (46... Rf5 47. Rb7 Re4) 47. h5 $18 {[%emt 0:00:16]} Re4 {[%emt 0:00:19]} 48. Ra8+ $2 {[%emt 0:01:00]} (48. h6 Rff4 49. h7 Rg4+ 50. Kf2 Rgf4+ 51. Kg2) 48... Kd7 {[%emt 0:00:03]} 49. g6 {[%emt 0:00:20]} Rff4 $2 {[%emt 0:00:13]} (49... Rf5 50. g7 (50. Ra7+ Kc6 $18) 50... Rg5+ 51. Kf2 Rf5+ 52. Kg2 Rg4+ 53. Kh3 Rfg5) 50. Ra7+ $18 {[%emt 0:00:17]} Ke6 {[%emt 0:00:21]} 51. Ra6+ {[%emt 0:00:02]} Ke7 {[%emt 0:00:05]} 52. Ra7+ {[%emt 0:00:19]} (52. h6 $142 {Threatens to win with h7.} Rg4+ 53. Kf2 Rgf4+ 54. Kg2 Rg4+ 55. Kf1 Ref4+ 56. Ke1 Re4+ 57. Kd1 Rxg6 58. Rxg6) 52... Ke6 $18 {[%emt 0:00:02]} 53. Ra6+ {[%emt 0:00:01]} (53. g7 $142 Rg4+ 54. Kf2 Rgf4+ 55. Kg1 Rg4+ 56. Kf1 Ref4+ 57. Bf2) 53... Ke7 $1 $18 {[%emt 0:00:01] [#]} 54. Be3 $2 {[%emt 0:00:25]} (54. h6 $1 $18 {[%mdl 512] and the rest is easy. Strongly threatening h7.} Rg4+ 55. Kf2 Rgf4+ 56. Kg2 Rg4+ 57. Kf1 Rgf4+ 58. Bf2) 54... Rf5 $16 {[%emt 0:00:36]} (54... Rxe3+ $2 {perishes.} 55. Kxf4 Re4+ 56. Kg5 $18) 55. Bc5+ {[%emt 0:00:01]} Kd7 {[%emt 0:00:03]} 56. g7 {[%emt 0:00:00]} ({Of course not} 56. Rd6+ $6 Kc7 $11) 56... Rg5+ {[%emt 0:00:07]} 57. Kf3 {[%emt 0:00:01]} Rh4 $2 {[%emt 0:00:16][%mdl 8192]} (57... Rf5+ $16 58. Kg2 Rg5+ 59. Kf1 Rxg7) 58. Rg6 {[%emt 0:00:08]} Rf5+ {[%emt 0:00:09]} 59. Kg3 {[%emt 0:00:03]} Rhf4 {[%emt 0:00:02]} 60. g8=Q {[%emt 0:00:02]} 1-0

[Event "Tech Mahindra GCL Final 2024"]
[Site "London"]
[Date "2024.10.12"]
[Round "1"]
[White "Gunina, Valentina"]
[Black "Kashlinskaya, Alina"]
[Result "1/2-1/2"]
[ECO "E11"]
[WhiteElo "2425"]
[BlackElo "2493"]
[Annotator "RC"]
[PlyCount "182"]
[EventDate "2024.09.29"]
[EventType "team-tourn"]
[EventCountry "ENG"]
[SourceTitle "playchess.com"]
[Source "ChessBase"]
[SourceQuality "1"]
[WhiteTeam "Triveni Continental Kings"]
[BlackTeam "Alaskan Knights"]
[TimeControl "1200"]

1. d4 {[%emt 0:00:03]} Nf6 {[%emt 0:00:01]} 2. c4 {[%emt 0:00:02]} e6 {[%emt 0:00:01]} 3. Nf3 {[%emt 0:00:01]} Bb4+ {[%emt 0:00:02]} 4. Bd2 {[%emt 0:00:02]} a5 {[%emt 0:00:01]} 5. a3 {[%emt 0:00:14]} Bxd2+ {[%emt 0:00:02]} 6. Qxd2 {[%emt 0:00:02]} b6 {[%emt 0:00:01]} 7. Nc3 {[%emt 0:00:02]} Bb7 {[%emt 0:00:01]} 8. Qf4 {[%emt 0:00:01]} d5 {[%emt 0:00:16]} 9. Nb5 {[%emt 0:00:04]} Na6 {[%emt 0:00:23]} 10. e3 {[%emt 0:00:01]} O-O {[%emt 0:00:08]} 11. Be2 {[%emt 0:00:08]} dxc4 {[%emt 0:00:41]} 12. Bxc4 {[%emt 0:00:02]} c5 {[%emt 0:01:53]} 13. O-O {[%emt 0:00:03]} cxd4 {[%emt 0:00:20]} 14. Nfxd4 {[%emt 0:00:09]} Nc5 {[%emt 0:00:12]} 15. Rfd1 {[%emt 0:00:19]} Qe7 {[%emt 0:00:09]} 16. Qe5 {[%emt 0:00:04]} Nfd7 {[%emt 0:00:41]} 17. Qg3 {[%emt 0:00:45]} Rad8 {[%emt 0:00:24]} 18. f3 {[%emt 0:00:53]} Nf6 {[%emt 0:00:26]} 19. e4 {[%emt 0:01:59]} a4 {[%emt 0:00:05]} 20. e5 {[%emt 0:00:19]} Nh5 {[%emt 0:00:24]} 21. Qg4 {[%emt 0:00:09]} g6 {[%emt 0:00:04]} 22. h4 {[%emt 0:00:54]} Kh8 {[%emt 0:00:08]} 23. Nd6 {[%emt 0:00:11]} Ba8 {[%emt 0:00:35]} 24. Re1 {[%emt 0:00:26]} f5 {[%emt 0:00:17]} 25. Qg5 {[%emt 0:00:04]} Qxg5 {[%emt 0:00:17]} 26. hxg5 {[%emt 0:00:01]} Nf4 {[%emt 0:00:01]} 27. Rad1 {[%emt 0:00:23]} Rd7 {[%emt 0:01:01]} 28. Kh2 {[%emt 0:00:13]} Rfd8 {[%emt 0:00:13]} 29. g3 {[%emt 0:00:08]} Nd5 {[%emt 0:00:07]} 30. Nxe6 {[%emt 0:01:18]} Nxe6 {[%emt 0:00:02]} 31. Bxd5 {[%emt 0:00:02]} Bxd5 {[%emt 0:00:05]} 32. Rxd5 {[%emt 0:00:02]} Nxg5 {[%emt 0:00:04]} 33. Kg2 {[%emt 0:00:08]} Ne6 {[%emt 0:00:04]} 34. Red1 {[%emt 0:00:40]} Ra8 {[%emt 0:00:21]} 35. R1d2 {[%emt 0:00:08]} f4 {[%emt 0:00:28]} 36. Rb5 {[%emt 0:00:21]} Rc7 {[%emt 0:00:16]} 37. Rxb6 {[%emt 0:00:05]} fxg3 {[%emt 0:00:12]} 38. Kxg3 {[%emt 0:00:04]} Rc5 {[%emt 0:00:24]} 39. Nf7+ {[%emt 0:00:05]} Kg7 {[%emt 0:00:02]} 40. Rd7 {[%emt 0:00:20]} Rc7 {[%emt 0:00:25]} 41. Rxc7 {[%emt 0:00:39]} Nxc7 {[%emt 0:00:02]} 42. Ng5 {[%emt 0:00:02]} Ra7 {[%emt 0:00:08]} 43. Rc6 {[%emt 0:00:28]} Nd5 {[%emt 0:00:02]} 44. Ne6+ {[%emt 0:00:26]} Kf7 {[%emt 0:00:00]} 45. Nc5 {[%emt 0:00:06]} Ne7 {[%emt 0:00:06]} 46. Rf6+ {[%emt 0:00:05]} Ke8 {[%emt 0:00:48]} 47. Rb6 {[%emt 0:00:39]} Ra5 {[%emt 0:00:00]} 48. Rb8+ {[%emt 0:00:03]} Kf7 {[%emt 0:00:00]} 49. e6+ {[%emt 0:00:10]} Kf6 {[%emt 0:00:00]} 50. Rf8+ {[%emt 0:00:19]} Ke5 {[%emt 0:00:00]} 51. f4+ {[%emt 0:00:16]} Kd5 {[%emt 0:00:00]} 52. Nb7 {[%emt 0:00:44]} Rb5 {[%emt 0:00:02]} 53. Nd8 {[%emt 0:00:01]} Rb3+ {[%emt 0:00:01]} 54. Kg4 {[%emt 0:00:03]} h6 {[%emt 0:00:26]} 55. Rf7 {[%emt 0:01:05]} Kd6 {[%emt 0:00:11]} 56. Rf6 {[%emt 0:00:37]} h5+ {[%emt 0:00:36]} 57. Kg5 {[%emt 0:00:01]} Rg3+ {[%emt 0:00:06]} 58. Kh6 {[%emt 0:00:04]} Nf5+ {[%emt 0:01:05]} 59. Kh7 {[%emt 0:00:01]} Ke7 {[%emt 0:00:00]} 60. Rxg6 {[%emt 0:00:01]} Kxd8 {[%emt 0:00:02]} 61. Rf6 {[%emt 0:00:14]} Ne7 {[%emt 0:00:07]} 62. f5 {[%emt 0:00:13]} h4 {[%emt 0:00:14]} 63. Rf8+ {[%emt 0:00:24]} Kc7 {[%emt 0:00:01]} 64. f6 {[%emt 0:00:01]} Kd6 {[%emt 0:01:25]} 65. Ra8 {[%emt 0:01:02]} h3 {[%emt 0:00:46]} 66. Ra6+ {[%emt 0:00:02]} Nc6 {[%emt 0:00:11]} 67. e7 {[%emt 0:00:23]} Re3 {[%emt 0:00:17]} 68. Rxa4 {[%emt 0:00:02]} h2 {[%emt 0:00:20]} 69. Rh4 {[%emt 0:00:02]} Re2 {[%emt 0:00:00]} 70. b4 {[%emt 0:00:05]} Kd7 {[%emt 0:00:04]} 71. Kg7 {[%emt 0:00:04]} Ne5 {[%emt 0:00:02]} 72. f7 {[%emt 0:00:06]} Rg2+ {[%emt 0:00:06]} 73. Kf6 {[%emt 0:00:01]} Nxf7 {[%emt 0:00:20]} 74. Kxf7 {[%emt 0:00:02]} Rf2+ {[%emt 0:00:01]} 75. Kg6 {[%emt 0:00:01]} Kxe7 {[%emt 0:00:01]} 76. Kg5 {[%emt 0:00:01]} Ra2 {[%emt 0:00:02]} 77. Kf5 {[%emt 0:00:03]} Kd6 {[%emt 0:00:03]} 78. Ke4 {[%emt 0:00:03]} Kc6 {[%emt 0:00:03]} 79. Kd4 {[%emt 0:00:03]} Rxa3 {[%emt 0:00:20]} 80. Rxh2 {[%emt 0:00:01]} Rg3 {[%emt 0:00:01]} 81. Kc4 {[%emt 0:00:02]} Rg4+ {[%emt 0:00:00]} 82. Kb3 {[%emt 0:00:01]} Rg3+ {[%emt 0:00:01]} 83. Ka4 {[%emt 0:00:00]} Kb6 {[%emt 0:00:00]} 84. Rh6+ {[%emt 0:00:01]} Kb7 {[%emt 0:00:00]} 85. Ka5 {[%emt 0:00:01]} Rg5+ {[%emt 0:00:01]} 86. b5 {[%emt 0:00:00]} Kb8 {[%emt 0:00:00]} 87. Ka6 {[%emt 0:00:01]} Rg8 {[%emt 0:00:01]} 88. Rh7 {[%emt 0:00:01]} Rf8 {[%emt 0:00:00]} 89. b6 {[%emt 0:00:01]} Rg8 {[%emt 0:00:01]} 90. Rb7+ {[%emt 0:00:01]} Ka8 {[%emt 0:00:00]} 91. Rc7 {[%emt 0:00:01]} Kb8 {[%emt 0:00:01]} 1/2-1/2

[Event "Tech Mahindra GCL Final 2024"]
[Site "London"]
[Date "2024.10.12"]
[Round "2"]
[White "Abdusattorov, Nodirbek"]
[Black "Wei, Yi"]
[Result "0-1"]
[ECO "B90"]
[WhiteElo "2783"]
[BlackElo "2763"]
[Annotator "RC"]
[PlyCount "174"]
[EventDate "2024.09.29"]
[EventType "team-tourn"]
[EventCountry "ENG"]
[SourceTitle "playchess.com"]
[Source "ChessBase"]
[SourceQuality "1"]
[WhiteTeam "Alaskan Knights"]
[BlackTeam "Triveni Continental Kings"]
[TimeControl "1200"]

1. e4 {[%emt 0:00:02]} c5 {[%emt 0:00:01]} 2. Nf3 {[%emt 0:00:04]} d6 {[%emt 0:00:01]} 3. d4 {[%emt 0:00:11]} cxd4 {[%emt 0:00:01]} 4. Nxd4 {[%emt 0:00:02]} Nf6 {[%emt 0:00:02]} 5. Nc3 {[%emt 0:00:02]} a6 {[%emt 0:00:02]} 6. h3 {[%emt 0:00:25]} e5 {[%emt 0:00:01]} 7. Nde2 {[%emt 0:00:01]} h5 {[%emt 0:00:01]} 8. g3 {[%emt 0:00:03]} b5 {[%emt 0:00:09]} 9. Nd5 {[%emt 0:00:15]} Nbd7 {[%emt 0:00:03]} 10. Bg2 {[%emt 0:00:12]} Bb7 {[%emt 0:00:06]} 11. Nec3 {[%emt 0:00:05]} Nxd5 {[%emt 0:00:14]} 12. Nxd5 {[%emt 0:00:04]} Bxd5 {[%emt 0:00:07]} 13. Qxd5 {[%emt 0:00:23]} h4 {[%emt 0:00:09]} 14. Be3 {[%emt 0:00:31]} Be7 {[%emt 0:00:01]} 15. Qd2 {[%emt 0:00:51]} Rc8 {[%emt 0:00:42]} 16. g4 {[%emt 0:00:19]} O-O {[%emt 0:00:26]} 17. g5 {[%emt 0:00:46]} Qc7 {[%emt 0:01:45]} 18. c3 {[%emt 0:01:22]} Qc4 {[%emt 0:00:22]} 19. Bf3 {[%emt 0:03:17]} Nc5 {[%emt 0:00:09]} 20. Bxc5 {[%emt 0:00:15]} Rxc5 {[%emt 0:00:29]} 21. Rg1 {[%emt 0:00:06]} d5 {[%emt 0:01:00]} 22. exd5 {[%emt 0:00:38]} e4 {[%emt 0:00:14]} 23. Be2 {[%emt 0:00:01]} Qxd5 {[%emt 0:00:15]} 24. Qxd5 {[%emt 0:00:05]} Rxd5 {[%emt 0:00:01]} 25. Rg4 {[%emt 0:00:32]} Re5 {[%emt 0:01:21]} 26. a4 {[%emt 0:01:02]} Bxg5 {[%emt 0:02:22]} 27. axb5 {[%emt 0:00:02]} axb5 {[%emt 0:00:01]} 28. Ra5 {[%emt 0:00:01]} Rb8 {[%emt 0:00:06]} 29. c4 {[%emt 0:00:03]} Bd8 {[%emt 0:00:05]} 30. Rxb5 {[%emt 0:00:04]} Rbxb5 {[%emt 0:00:01]} 31. cxb5 {[%emt 0:00:00]} g5 {[%emt 0:00:08]} 32. Bc4 {[%emt 0:00:15]} Kg7 {[%emt 0:00:06]} 33. Ke2 {[%emt 0:00:01]} Bb6 {[%emt 0:00:07]} 34. f4 {[%emt 0:02:40]} exf3+ {[%emt 0:00:02]} 35. Kxf3 {[%emt 0:00:00]} Re3+ {[%emt 0:00:28]} 36. Kg2 {[%emt 0:00:01]} Kg6 {[%emt 0:00:13]} 37. Bf1 {[%emt 0:00:27]} Rb3 {[%emt 0:00:47]} 38. Rc4 {[%emt 0:00:07]} Rxb2+ {[%emt 0:00:04]} 39. Kh1 {[%emt 0:00:01]} Be3 {[%emt 0:00:20]} 40. Bd3+ {[%emt 0:00:08]} Kf6 {[%emt 0:00:07]} 41. Rc2 {[%emt 0:00:29]} Rb4 {[%emt 0:00:29]} 42. Bc4 {[%emt 0:00:06]} Ke7 {[%emt 0:00:32]} 43. Re2 {[%emt 0:00:11]} Rxc4 {[%emt 0:00:03]} 44. Rxe3+ {[%emt 0:00:00]} Kd6 {[%emt 0:00:21]} 45. Rf3 {[%emt 0:00:11]} Ke6 {[%emt 0:00:38]} 46. Rb3 {[%emt 0:00:06]} Rc7 {[%emt 0:00:02]} 47. b6 {[%emt 0:00:03]} Rb7 {[%emt 0:00:01]} 48. Kg2 {[%emt 0:00:04]} Kd6 {[%emt 0:00:21]} 49. Rf3 {[%emt 0:00:07]} Ke6 {[%emt 0:00:06]} 50. Rb3 {[%emt 0:00:01]} f6 {[%emt 0:00:05]} 51. Kf3 {[%emt 0:00:04]} Kd6 {[%emt 0:00:10]} 52. Ke4 {[%emt 0:00:20]} Kc5 {[%emt 0:00:12]} 53. Rc3+ {[%emt 0:00:01]} Kb5 {[%emt 0:00:11]} 54. Rb3+ {[%emt 0:00:01]} Ka5 {[%emt 0:00:08]} 55. Kf5 {[%emt 0:00:16]} Rxb6 {[%emt 0:00:02]} 56. Rc3 {[%emt 0:00:01]} Kb5 {[%emt 0:00:03]} 57. Rc1 {[%emt 0:00:08]} Rc6 {[%emt 0:00:04]} 58. Rb1+ {[%emt 0:00:01]} Kc5 {[%emt 0:00:04]} 59. Rc1+ {[%emt 0:00:00]} Kb6 {[%emt 0:00:01]} 60. Rd1 {[%emt 0:00:02]} Kc7 {[%emt 0:00:03]} 61. Rd2 {[%emt 0:00:01]} Rd6 {[%emt 0:00:02]} 62. Re2 {[%emt 0:00:00]} Kc6 {[%emt 0:00:07]} 63. Rc2+ {[%emt 0:00:02]} Kd7 {[%emt 0:00:02]} 64. Re2 {[%emt 0:00:00]} Rb6 {[%emt 0:00:05]} 65. Re1 {[%emt 0:00:01]} Rc6 {[%emt 0:00:03]} 66. Re2 {[%emt 0:00:00]} Kc7 {[%emt 0:00:14]} 67. Rd2 {[%emt 0:00:01]} Rd6 {[%emt 0:00:03]} 68. Rc2+ {[%emt 0:00:01]} Kb7 {[%emt 0:00:01]} 69. Rc1 {[%emt 0:00:01]} Kb6 {[%emt 0:00:01]} 70. Rc2 {[%emt 0:00:00]} Rc6 {[%emt 0:00:01]} 71. Rd2 {[%emt 0:00:01]} Kb5 {[%emt 0:00:02]} 72. Rb2+ {[%emt 0:00:00]} Kc5 {[%emt 0:00:08]} 73. Rd2 {[%emt 0:00:02]} Rb6 {[%emt 0:00:05]} 74. Rd1 {[%emt 0:00:01]} Kc4 {[%emt 0:00:01]} 75. Rd2 {[%emt 0:00:01]} Kc3 {[%emt 0:00:01]} 76. Rd1 {[%emt 0:00:00]} Ra6 {[%emt 0:00:00]} 77. Rd8 {[%emt 0:00:01]} Rc6 {[%emt 0:00:04]} 78. Rd1 {[%emt 0:00:01]} Kb4 {[%emt 0:00:01]} 79. Rd4+ {[%emt 0:00:01]} Rc4 {[%emt 0:00:05]} 80. Rd6 {[%emt 0:00:14]} Rf4+ {[%emt 0:00:01]} 81. Kg6 {[%emt 0:00:01]} Rf3 {[%emt 0:00:03]} 82. Rc6 {[%emt 0:00:07]} Rxh3 {[%emt 0:00:09]} 83. Rxf6 {[%emt 0:00:04]} Rg3 {[%emt 0:00:02]} 84. Rf1 {[%emt 0:00:16]} h3 {[%emt 0:00:02]} 85. Kf5 {[%emt 0:00:02]} g4 {[%emt 0:00:01]} 86. Kf4 {[%emt 0:00:07]} Rg2 {[%emt 0:00:02]} 87. Rh1 {[%emt 0:00:16]} h2 {[%emt 0:00:02]} 0-1

[Event "Tech Mahindra GCL Final 2024"]
[Site "London"]
[Date "2024.10.12"]
[Round "2"]
[White "Mamedyarov, Shakhriyar"]
[Black "Radjabov, Teimour"]
[Result "1-0"]
[ECO "E62"]
[WhiteElo "2733"]
[BlackElo "2700"]
[Annotator "TA"]
[PlyCount "83"]
[EventDate "2024.09.29"]
[EventType "team-tourn"]
[EventCountry "ENG"]
[SourceTitle "playchess.com"]
[Source "ChessBase"]
[SourceQuality "1"]
[WhiteTeam "Alaskan Knights"]
[BlackTeam "Triveni Continental Kings"]
[TimeControl "1200"]

{[%evp 18,83,12,18,12,27,28,27,20,-29,6,-29,-23,-38,39,47,44,38,40,31,31,45,33,31,68,61,100,91,111,105,110,106,140,143,145,140,145,135,137,130,145,142,185,132,139,138,137,111,143,110,205,205,222,210,331,337,380,384,409,409,409,409,389,413,527,520,481,470]} 1. d4 {[%emt 0:00:01]} Nf6 {[%emt 0:00:01]} 2. c4 {[%emt 0:00:01]} d6 {[%emt 0:00:01]} 3. Nf3 {[%emt 0:00:09]} g6 {[%emt 0:00:02]} 4. Nc3 {[%emt 0:00:08]} Bg7 {[%emt 0:00:01]} 5. g3 {[%emt 0:00:01]} O-O {[%emt 0:00:08]} 6. Bg2 {[%emt 0:00:02]} Nc6 {[%emt 0:00:02]} 7. O-O {[%emt 0:00:14]} e5 {[%emt 0:00:02]} 8. h3 {[%emt 0:00:02]} exd4 {[%emt 0:00:16]} 9. Nxd4 {[%emt 0:00:01]} Nxd4 {[%emt 0:00:05]} 10. Qxd4 {[%emt 0:00:01]} Be6 {[%emt 0:00:02][%cal Of6d5]} 11. Qh4 {[%emt 0:00:48][%cal Oc1g5]} Nh5 {[%emt 0:00:54]} 12. Bg5 {[%emt 0:00:20]} (12. Bxb7 Qxh4 13. gxh4 Rab8 $17) 12... f6 {[%emt 0:01:56] White has an edge.} 13. Be3 {[%emt 0:01:13]} (13. Bd2 $142) 13... c6 {[%emt 0:00:28]} 14. Rfd1 {[%emt 0:00:44]} ({But not} 14. g4 $2 g5 15. Qxh5 Bf7 $19) 14... f5 {[%emt 0:00:18] Threatens to win with ...Bf6.} 15. Bg5 {[%emt 0:00:14]} Bf6 {[%emt 0:00:27]} ({Better is} 15... Qd7 $15 16. Be3 h6) 16. Bxf6 $14 {[%emt 0:00:07]} Qxf6 {[%emt 0:00:40]} 17. Qxf6 {[%emt 0:00:10]} Nxf6 {[%emt 0:00:05]} 18. Rxd6 {[%emt 0:00:45]} Bxc4 {[%emt 0:00:02]} 19. b3 $36 {[%emt 0:00:05][%mdl 2048] White has good play.} Ba6 {[%emt 0:00:48]} 20. Rad1 {[%emt 0:00:32]} Kf7 {[%emt 0:01:01]} 21. Na4 {[%emt 0:02:48] White is more active.} Bxe2 {[%emt 0:04:55] [#]} 22. R1d2 {[%emt 0:00:02]} Rfe8 {[%emt 0:03:02]} 23. Nc5 {[%emt 0:00:12]} Ba6 {[%emt 0:00:59]} 24. Nxa6 {[%emt 0:00:17]} Re1+ {[%emt 0:00:03]} 25. Kh2 {[%emt 0:00:10]} bxa6 {[%emt 0:00:01]} 26. Rxc6 {[%emt 0:00:04]} Rae8 {[%emt 0:00:12]} 27. Rxa6 {[%emt 0:00:19]} R8e7 {[%emt 0:00:00]} 28. b4 {[%emt 0:01:12]} Ne4 {[%emt 0:00:38]} 29. Rb2 {[%emt 0:00:32]} Rc7 {[%emt 0:00:33] [#]} 30. b5 {[%emt 0:00:23]} (30. a4 $1 $18) 30... Rec1 {[%emt 0:00:11]} 31. a4 {[%emt 0:00:45][%cal Ba2a4,Ba4a5,Ba5b6,Bb6b7][%mdl 32]} Nc5 {[%emt 0:00:20]} 32. Rc6 {[%emt 0:00:02]} Rxc6 {[%emt 0:00:25]} 33. Bxc6 $16 {[%emt 0:00:20][%mdl 4096] Endgame. a5 is the strong threat. KRB-KRN} Ke7 {[%emt 0:00:17]} (33... Ra1 $16 {keeps fighting.}) 34. a5 $18 {[%emt 0:00:13]} Kd6 {[%emt 0:00:00]} 35. Bg2 {[%emt 0:00:24] Hoping for b6.} ({Don't take} 35. Rd2+ $6 Kc7 36. Re2 Kd6 37. Rd2+ Kc7) 35... Nd7 {[%emt 0:00:08]} (35... Rc3 $142 36. Rd2+ Kc7) 36. b6 {[%emt 0:00:04]} axb6 {[%emt 0:00:01]} 37. axb6 {[%emt 0:00:01]} Rc8 {[%emt 0:00:02]} 38. Rd2+ {[%emt 0:00:15]} Ke7 {[%emt 0:00:00]} 39. b7 {[%emt 0:00:16]} Rb8 {[%emt 0:00:01]} 40. g4 {[%emt 0:00:09]} Nc5 {[%emt 0:00:04]} 41. gxf5 {[%emt 0:00:14]} gxf5 {[%emt 0:00:02]} 42. Rd5 {[%emt 0:00:01][%csl LRc5,LRf5] Weighted Error Value: White=0.07 (flawless) /Black=0.25 (precise) .  Mistake:       	White=2     	Black=3      Inaccurate:     	White=1     	Black=5      OK:         	White=18    	Black=11     Best:        	White=4     	Black=1} 1-0